fUSD/lending_fUSD_20250524
["ID","MTS","AMOUNT","RATE_DAILY","PERIOD"]
[362263486,1748127044113,-420.0,0.00019178,2]
[362263489,1748127044124,-535.3,0.00019178,2]
[362263492,1748127044134,-4674.37416054,0.0002,2]
[362263496,1748127044147,-212763.78891841,0.0002,2]
[362263511,1748127044251,-926.25975926,0.0002,2]
[362263618,1748127045396,-420.0,0.00019178,2]
[362263619,1748127045407,-426.85,0.00019205,2]
[362263620,1748127045417,-150.0,0.00019748,2]
[362263621,1748127045427,-500.0,0.00019999,2]
[362263622,1748127045436,-294.12809087,0.00019999,2]
[362263623,1748127045446,-290.24701366,0.00019999,2]
[362263624,1748127045456,-500.0,0.00019999,2]
[362263625,1748127045466,-500.0,0.00019999,2]
[362263626,1748127045476,-219027.43688887,0.0002,2]
[362263627,1748127045512,-13141.3156634,0.0002,2]
[362263628,1748127045621,-859.65,0.0002,2]
[362263629,1748127045633,-5403.24,0.0002,2]
[362263630,1748127521659,250.0,0.00015,2]
[362263631,1748127522721,300.0,0.00017,2]
[362263632,1748127851672,203.0,0.00017476,2]
[362263633,1748127919535,167.65,0.00025124,120]
[362263634,1748127950129,-167.65,0.00018272,2]
[362263635,1748127950150,-756.32541594,0.00018318,2]
[362263636,1748128026187,-150.0,0.00018241,7]
[362263637,1748128026211,-243.67458406,0.00018318,2]
[362263638,1748128026234,-456.12692403,0.00018559,2]
[362263643,1748128231803,-247.01,0.00018244,2]
[362263644,1748128231813,-789.62307597,0.00018559,2]
[362263645,1748128231822,-194.71861534,0.00018978,2]
[362263646,1748128231831,-350.0,0.00019,2]
[362263647,1748128231840,-300.0,0.00019077,2]
[362263648,1748128231849,-1432.68209161,0.00019078,2]
[362263649,1748128231859,-168.82523802,0.00019105,2]
[362263650,1748128231868,-2095.72707714,0.00019105,2]
[362263652,1748128231878,-151.0,0.00019166,2]
[362263654,1748128231887,-1199.20597015,0.00019166,2]
[362263656,1748128231897,-668.65185757,0.00019166,2]
[362263658,1748128231906,-668.65185757,0.00019166,2]
[362263660,1748128231915,-207.4,0.00019166,2]
[362263662,1748128231925,-3459.95944061,0.00019168,2]
[362263663,1748128231934,-989.81,0.00019168,2]
[362263665,1748128231944,-1075.74041342,0.00019169,2]
[362263666,1748128231955,-356.94167812,0.00019169,2]
[362263668,1748128231964,-150.0,0.00019172,2]
[362263669,1748128231974,-470.51763887,0.00019173,2]
[362263670,1748128231984,-500.0,0.00019173,2]
[362263671,1748128231993,-500.0,0.00019173,2]
[362263672,1748128232003,-500.0,0.00019173,2]
[362263673,1748128232012,-208.42445273,0.00019173,2]
[362263674,1748128232021,-504.85155625,0.00019173,2]
[362263675,1748128232031,-424.50575854,0.00019177,2]
[362263676,1748128232041,-198.91633485,0.00019177,2]
[362263677,1748128232050,-589.9427649,0.00019177,2]
[362263678,1748128232060,-420.0,0.00019178,2]
[362263679,1748128232069,-191.14390946,0.00019178,2]
[362263680,1748128232079,-451.10511426,0.00019178,2]
[362263681,1748128232089,-420.0,0.00019178,2]
[362263682,1748128232098,-420.0,0.00019178,2]
[362263683,1748128232107,-156.85609308,0.00019178,2]
[362263684,1748128232117,-423.23589226,0.00019178,2]
[362263685,1748128232127,-153.76231708,0.00019178,2]
[362263686,1748128232136,-420.0,0.00019178,2]
[362263687,1748128232145,-420.0,0.00019178,2]
[362263688,1748128232155,-420.0,0.00019178,2]
[362263689,1748128232165,-420.0,0.00019178,2]
[362263690,1748128232174,-370.98853961,0.00019178,2]
[362263691,1748128232184,-420.0,0.00019178,2]
[362263692,1748128232194,-426.83879693,0.00019178,2]
[362263693,1748128232204,-420.0,0.00019178,2]
[362263694,1748128232213,-420.0,0.00019178,2]
[362263695,1748128232223,-420.0,0.00019178,2]
[362263696,1748128232232,-538.12733261,0.00019178,2]
[362263697,1748128232241,-420.0,0.00019178,2]
[362263698,1748128232252,-430.43878104,0.00019178,2]
[362263699,1748128232261,-420.0,0.00019178,2]
[362263700,1748128232271,-420.0,0.00019178,2]
[362263701,1748128232280,-413.49468985,0.00019178,2]
[362263702,1748128232290,-420.0,0.00019178,2]
[362263703,1748128232299,-420.0,0.00019178,2]
[362263704,1748128232309,-420.0,0.00019178,2]
[362263705,1748128232319,-420.0,0.00019178,2]
[362263706,1748128232328,-300.0,0.00019178,2]
[362263707,1748128232337,-420.0,0.00019178,2]
[362263708,1748128232347,-420.0,0.00019178,2]
[362263709,1748128232356,-420.0,0.00019178,2]
[362263710,1748128232365,-510.97266457,0.00019178,2]
[362263711,1748128232375,-420.0,0.00019178,2]
[362263712,1748128232384,-420.0,0.00019178,2]
[362263713,1748128232394,-425.31148811,0.00019178,2]
[362263714,1748128232404,-422.57305271,0.00019178,2]
[362263715,1748128232413,-420.0,0.00019178,2]
[362263716,1748128232423,-207.29066471,0.00019178,2]
[362263717,1748128232432,-535.0720288,0.00019178,2]
[362263718,1748128232442,-420.0,0.00019178,2]
[362263719,1748128232452,-420.0,0.00019178,2]
[362263720,1748128232462,-168.03335773,0.00019178,2]
[362263721,1748128232471,-420.0,0.00019178,2]
[362263722,1748128232480,-420.0,0.00019178,2]
[362263723,1748128232490,-420.0,0.00019178,2]
[362263724,1748128232499,-420.0,0.00019178,2]
[362263725,1748128232508,-173.99886518,0.00019178,2]
[362263726,1748128232517,-420.0,0.00019178,2]
[362263727,1748128232527,-420.0,0.00019178,2]
[362263728,1748128232536,-420.0,0.00019178,2]
[362263729,1748128232546,-420.0,0.00019178,2]
[362263730,1748128232555,-420.0,0.00019178,2]
[362263731,1748128232565,-420.0,0.00019178,2]
[362263732,1748128232578,-420.0,0.00019178,2]
[362263733,1748128232587,-432.69004805,0.00019178,2]
[362263734,1748128232596,-420.0,0.00019178,2]
[362263735,1748128232605,-420.0,0.00019178,2]
[362263736,1748128232615,-420.0,0.00019178,2]
[362263737,1748128232624,-340.12783029,0.00019178,2]
[362263738,1748128232634,-420.0,0.00019178,2]
[362263739,1748128232643,-420.0,0.00019178,2]
[362263740,1748128232655,-420.0,0.00019178,2]
[362263741,1748128232665,-420.0,0.00019178,2]
[362263742,1748128232675,-155.61790181,0.00019178,2]
[362263743,1748128232685,-420.0,0.00019178,2]
[362263744,1748128232696,-420.0,0.00019178,2]
[362263745,1748128232705,-426.37984901,0.00019178,2]
[362263746,1748128232716,-420.0,0.00019178,2]
[362263747,1748128232726,-420.0,0.00019178,2]
[362263748,1748128232736,-420.0,0.00019178,2]
[362263749,1748128232746,-420.0,0.00019178,2]
[362263750,1748128232756,-420.0,0.00019178,2]
[362263751,1748128232766,-420.0,0.00019178,2]
[362263752,1748128232775,-420.0,0.00019178,2]
[362263753,1748128232785,-166.63241116,0.00019178,2]
[362263754,1748128232795,-420.0,0.00019178,2]
[362263755,1748128232805,-420.0,0.00019178,2]
[362263756,1748128232815,-432.55484346,0.00019178,2]
[362263757,1748128232825,-427.11353859,0.00019178,2]
[362263758,1748128232834,-420.0,0.00019178,2]
[362263759,1748128232843,-420.0,0.00019178,2]
[362263760,1748128232854,-427.86199486,0.00019178,2]
[362263761,1748128232864,-420.0,0.00019178,2]
[362263762,1748128232874,-420.0,0.00019178,2]
[362263763,1748128232884,-427.06972904,0.00019178,2]
[362263764,1748128232893,-439.28025685,0.00019178,2]
[362263765,1748128232903,-426.37488802,0.00019178,2]
[362263766,1748128232912,-420.0,0.00019178,2]
[362263767,1748128232922,-429.40087816,0.00019178,2]
[362263768,1748128232932,-428.84702261,0.00019178,2]
[362263769,1748128232942,-420.0,0.00019178,2]
[362263770,1748128232951,-420.0,0.00019178,2]
[362263771,1748128232960,-420.0,0.00019178,2]
[362263772,1748128232970,-430.92020439,0.00019178,2]
[362263773,1748128232980,-420.0,0.00019178,2]
[362263774,1748128232993,-420.0,0.00019178,2]
[362263775,1748128233005,-420.0,0.00019178,2]
[362263776,1748128233018,-420.0,0.00019178,2]
[362263777,1748128233031,-420.0,0.00019178,2]
[362263778,1748128233043,-420.0,0.00019178,2]
[362263779,1748128233054,-420.0,0.00019178,2]
[362263780,1748128233065,-420.0,0.00019178,2]
[362263781,1748128233078,-420.0,0.00019178,2]
[362263782,1748128233091,-420.0,0.00019178,2]
[362263783,1748128233103,-420.0,0.00019178,2]
[362263784,1748128233114,-420.0,0.00019178,2]
[362263785,1748128233126,-420.0,0.00019178,2]
[362263786,1748128233138,-420.0,0.00019178,2]
[362263787,1748128233149,-420.0,0.00019178,2]
[362263788,1748128233162,-420.0,0.00019178,2]
[362263789,1748128233173,-420.0,0.00019178,2]
[362263790,1748128233185,-420.0,0.00019178,2]
[362263791,1748128233197,-390.19300929,0.00019178,2]
[362263792,1748128233208,-420.0,0.00019178,2]
[362263793,1748128233218,-396.82100708,0.00019178,2]
[362263794,1748128233229,-420.0,0.00019178,2]
[362263795,1748128233241,-420.0,0.00019178,2]
[362263796,1748128233254,-420.0,0.00019178,2]
[362263797,1748128233266,-999.99,0.00019178,2]
[362263798,1748128233278,-9999.99,0.00019178,2]
[362263799,1748128233289,-150.99,0.00019178,2]
[362263800,1748128233301,-9999.99,0.00019178,2]
[362263801,1748128233314,-400.55,0.00019178,2]
[362263802,1748128233326,-488.09,0.00019178,2]
[362263803,1748128233338,-173.24,0.00019178,2]
[362263804,1748128233350,-150.99,0.00019178,2]
[362263805,1748128233361,-4683.93,0.00019178,2]
[362263806,1748128233375,-346.90554918,0.00019178,2]
[362263807,1748128233387,-420.0,0.00019178,2]
[362263808,1748128233399,-420.0,0.00019178,2]
[362263809,1748128233412,-420.0,0.00019178,2]
[362263810,1748128233423,-351.75335609,0.00019178,2]
[362263811,1748128233435,-420.0,0.00019178,2]
[362263812,1748128233445,-319.90778846,0.00019178,2]
[362263813,1748128233456,-420.0,0.00019178,2]
[362263814,1748128233468,-420.0,0.00019178,2]
[362263815,1748128233480,-420.0,0.00019178,2]
[362263816,1748128233493,-420.0,0.00019178,2]
[362263817,1748128233505,-480.36313951,0.00019178,2]
[362263818,1748128233516,-420.0,0.00019178,2]
[362263819,1748128233527,-420.0,0.00019178,2]
[362263820,1748128233538,-420.0,0.00019178,2]
[362263821,1748128233548,-420.0,0.00019178,2]
[362263822,1748128233558,-420.0,0.00019178,2]
[362263823,1748128233571,-424.55181669,0.00019178,2]
[362263824,1748128233582,-420.0,0.00019178,2]
[362263825,1748128233593,-165.97338481,0.00019178,2]
[362263826,1748128233606,-420.0,0.00019178,2]
[362263827,1748128233620,-420.0,0.00019178,2]
[362263828,1748128233630,-420.0,0.00019178,2]
[362263829,1748128233640,-420.0,0.00019178,2]
[362263830,1748128233652,-433.51467796,0.00019178,2]
[362263831,1748128233663,-486.00119652,0.00019178,2]
[362263832,1748128233674,-420.0,0.00019178,2]
[362263833,1748128233685,-420.0,0.00019178,2]
[362263834,1748128233696,-428.39932387,0.00019178,2]
[362263835,1748128233709,-420.0,0.00019178,2]
[362263836,1748128233721,-420.0,0.00019178,2]
[362263837,1748128233731,-420.0,0.00019178,2]
[362263838,1748128233741,-420.0,0.00019178,2]
[362263839,1748128233752,-429.64356567,0.00019178,2]
[362263840,1748128233770,-1.30456746,0.00019178,2]
[362263841,1748128233784,-420.0,0.00019178,2]
[362263842,1748128233795,-420.0,0.00019178,2]
[362263843,1748128233806,-3.19783406,0.00019178,2]
[362263844,1748128233819,-416.80216594,0.00019178,2]
[362263845,1748128233829,-420.0,0.00019178,2]
[362263846,1748128233840,-425.86305304,0.00019178,2]
[362263847,1748128233851,-420.0,0.00019178,2]
[362263848,1748128233862,-418.15599911,0.00019178,2]
[362263849,1748128233873,-420.0,0.00019178,2]
[362263850,1748128233884,-420.0,0.00019178,2]
[362263851,1748128233894,-420.0,0.00019178,2]
[362263852,1748128233905,-420.0,0.00019178,2]
[362263853,1748128233916,-420.0,0.00019178,2]
[362263854,1748128233926,-515.762497,0.00019178,2]
[362263855,1748128233937,-420.0,0.00019178,2]
[362263856,1748128233947,-420.0,0.00019178,2]
[362263857,1748128233958,-501.46132904,0.00019178,2]
[362263858,1748128233969,-426.29610453,0.00019178,2]
[362263859,1748128233980,-424.93105333,0.00019178,2]
[362263860,1748128233991,-420.0,0.00019178,2]
[362263861,1748128234002,-420.0,0.00019178,2]
[362263862,1748128234013,-420.0,0.00019178,2]
[362263863,1748128234024,-420.0,0.00019178,2]
[362263864,1748128234034,-420.0,0.00019178,2]
[362263865,1748128234046,-420.0,0.00019178,2]
[362263866,1748128234056,-420.0,0.00019178,2]
[362263867,1748128234067,-420.0,0.00019178,2]
[362263868,1748128234078,-470.80921479,0.00019178,2]
[362263869,1748128234089,-420.0,0.00019178,2]
[362263870,1748128234100,-420.0,0.00019178,2]
[362263871,1748128234111,-420.0,0.00019178,2]
[362263872,1748128234123,-420.0,0.00019178,2]
[362263873,1748128234134,-429.19570443,0.00019178,2]
[362263874,1748128234145,-420.0,0.00019178,2]
[362263875,1748128234156,-420.0,0.00019178,2]
[362263876,1748128234168,-420.0,0.00019178,2]
[362263877,1748128234179,-126.24339075,0.00019178,2]
[362263886,1748128237611,-472.64,0.00018827,2]
[362263888,1748128237623,-293.75660925,0.00019178,2]
[362263890,1748128237634,-350.77556138,0.00019178,2]
[362263892,1748128237644,-420.0,0.00019178,2]
[362263894,1748128237658,-248.36086264,0.00019178,2]
[362263903,1748128237735,-171.63913736,0.00019178,2]
[362263905,1748128237746,-276.78083264,0.00019178,2]
[362263907,1748128237759,-143.21916736,0.00019178,2]
[362263909,1748128237770,-231.89614519,0.00019178,2]
[362263912,1748128237784,-188.10385481,0.00019178,2]
[362263914,1748128237795,-420.0,0.00019178,2]
[362263916,1748128237806,-420.0,0.00019178,2]
[362263918,1748128237817,-129.49285788,0.00019178,2]
[362263921,1748128237831,-209.54900651,0.00019178,2]
[362263923,1748128237841,-420.0,0.00019178,2]
[362263925,1748128237852,-420.0,0.00019178,2]
[362263927,1748128237864,-255.99269743,0.00019178,2]
[362263929,1748128237876,-187.79264722,0.00019178,2]
[362263932,1748128237887,-420.0,0.00019178,2]
[362263934,1748128237898,-505.16499878,0.00019178,2]
[362263936,1748128237909,-420.0,0.00019178,2]
[362263938,1748128237920,-420.0,0.00019178,2]
[362263940,1748128237930,-420.0,0.00019178,2]
[362263942,1748128237941,-234.90871053,0.00019178,2]
[362263945,1748128237955,-185.09128947,0.00019178,2]
[362263947,1748128237965,-208.10077404,0.00019178,2]
[362263949,1748128237979,-211.89922596,0.00019178,2]
[362263951,1748128237991,-420.0,0.00019178,2]
[362263953,1748128238004,-420.0,0.00019178,2]
[362263955,1748128238014,-420.0,0.00019178,2]
[362263957,1748128238024,-420.0,0.00019178,2]
[362263958,1748128238035,-420.0,0.00019178,2]
[362263959,1748128238046,-533.72434675,0.00019178,2]
[362263961,1748128238056,-420.0,0.00019178,2]
[362263963,1748128238067,-420.0,0.00019178,2]
[362263966,1748128238078,-420.0,0.00019178,2]
[362263968,1748128238088,-420.0,0.00019178,2]
[362263970,1748128238098,-420.0,0.00019178,2]
[362263971,1748128238109,-420.0,0.00019178,2]
[362263974,1748128238120,-420.0,0.00019178,2]
[362263976,1748128238130,-420.0,0.00019178,2]
[362263978,1748128238141,-420.0,0.00019178,2]
[362263980,1748128238151,-420.0,0.00019178,2]
[362263982,1748128238162,-152.925138,0.00019178,2]
[362263984,1748128238172,-423.14737729,0.00019178,2]
[362263986,1748128238182,-420.0,0.00019178,2]
[362263988,1748128238193,-420.0,0.00019178,2]
[362263990,1748128238204,-420.0,0.00019178,2]
[362263992,1748128238214,-420.0,0.00019178,2]
[362263994,1748128238225,-511.39300389,0.00019178,2]
[362263997,1748128238235,-420.0,0.00019178,2]
[362263999,1748128238245,-420.0,0.00019178,2]
[362264001,1748128238255,-420.0,0.00019178,2]
[362264003,1748128238264,-420.0,0.00019178,2]
[362264005,1748128238273,-420.0,0.00019178,2]
[362264007,1748128238283,-420.0,0.00019178,2]
[362264008,1748128238292,-423.19658626,0.00019178,2]
[362264035,1748128238610,-420.0,0.00019178,2]
[362264036,1748128238629,-420.0,0.00019178,2]
[362264037,1748128238647,-420.0,0.00019178,2]
[362264038,1748128238656,-420.0,0.00019178,2]
[362264039,1748128238666,-420.0,0.00019178,2]
[362264040,1748128238674,-420.0,0.00019178,2]
[362264041,1748128238683,-420.0,0.00019178,2]
[362264042,1748128238692,-420.0,0.00019178,2]
[362264043,1748128238701,-420.0,0.00019178,2]
[362264044,1748128238710,-420.0,0.00019178,2]
[362264045,1748128238719,-420.0,0.00019178,2]
[362264046,1748128238728,-420.0,0.00019178,2]
[362264047,1748128238737,-420.0,0.00019178,2]
[362264048,1748128238746,-420.0,0.00019178,2]
[362264049,1748128238755,-420.0,0.00019178,2]
[362264050,1748128238764,-420.0,0.00019178,2]
[362264051,1748128238773,-420.0,0.00019178,2]
[362264052,1748128238782,-403.744631,0.00019178,2]
[362264053,1748128238791,-1856.9,0.00019178,2]
[362264054,1748128238800,-420.0,0.00019178,2]
[362264055,1748128238809,-420.0,0.00019178,2]
[362264056,1748128238819,-150.0,0.00019178,2]
[362264057,1748128238828,-420.0,0.00019178,2]
[362264058,1748128238837,-420.0,0.00019178,2]
[362264059,1748128238846,-420.0,0.00019178,2]
[362264060,1748128238855,-420.0,0.00019178,2]
[362264061,1748128238866,-536.16269391,0.00019178,2]
[362264062,1748128238875,-420.0,0.00019178,2]
[362264063,1748128238884,-420.0,0.00019178,2]
[362264064,1748128238894,-420.0,0.00019178,2]
[362264065,1748128238903,-441.86,0.00019178,2]
[362264066,1748128238912,-420.0,0.00019178,2]
[362264067,1748128238921,-420.0,0.00019178,2]
[362264068,1748128238931,-420.0,0.00019178,2]
[362264069,1748128238940,-420.0,0.00019178,2]
[362264070,1748128238949,-420.0,0.00019178,2]
[362264071,1748128238959,-420.0,0.00019178,2]
[362264072,1748128238968,-420.0,0.00019178,2]
[362264073,1748128238977,-420.0,0.00019178,2]
[362264074,1748128238986,-420.0,0.00019178,2]
[362264075,1748128238995,-424.31032941,0.00019178,2]
[362264076,1748128239005,-420.0,0.00019178,2]
[362264077,1748128239014,-152.925138,0.00019178,2]
[362264079,1748128239023,-420.0,0.00019178,2]
[362264080,1748128239032,-426.79284413,0.00019178,2]
[362264081,1748128239041,-421.47955716,0.00019178,2]
[362264082,1748128239051,-420.0,0.00019178,2]
[362264083,1748128239060,-420.0,0.00019178,2]
[362264084,1748128239069,-420.0,0.00019178,2]
[362264085,1748128239079,-421.25358977,0.00019178,2]
[362264086,1748128239088,-225.49828961,0.00019178,2]
[362264087,1748128239097,-420.0,0.00019178,2]
[362264088,1748128239107,-1098.4,0.00019178,2]
[362264089,1748128239120,-420.0,0.00019178,2]
[362264090,1748128239129,-420.0,0.00019178,2]
[362264091,1748128239139,-563.33449883,0.00019178,2]
[362264092,1748128239148,-420.0,0.00019178,2]
[362264093,1748128239157,-420.0,0.00019178,2]
[362264094,1748128239167,-420.0,0.00019178,2]
[362264095,1748128239176,-420.0,0.00019178,2]
[362264096,1748128239186,-420.0,0.00019178,2]
[362264097,1748128239195,-420.0,0.00019178,2]
[362264098,1748128239205,-420.0,0.00019178,2]
[362264099,1748128239214,-420.0,0.00019178,2]
[362264100,1748128239223,-420.0,0.00019178,2]
[362264101,1748128239232,-420.0,0.00019178,2]
[362264102,1748128239241,-420.0,0.00019178,2]
[362264103,1748128239250,-420.0,0.00019178,2]
[362264104,1748128239259,-420.0,0.00019178,2]
[362264105,1748128239269,-420.0,0.00019178,2]
[362264106,1748128239278,-427.63788307,0.00019178,2]
[362264107,1748128239287,-420.0,0.00019178,2]
[362264108,1748128239296,-985.24,0.00019178,2]
[362264109,1748128239306,-420.0,0.00019178,2]
[362264110,1748128239316,-420.0,0.00019178,2]
[362264111,1748128239325,-420.0,0.00019178,2]
[362264112,1748128239334,-341.23,0.00019178,2]
[362264113,1748128239343,-420.0,0.00019178,2]
[362264114,1748128239353,-420.0,0.00019178,2]
[362264115,1748128239364,-420.0,0.00019178,2]
[362264116,1748128239373,-420.0,0.00019178,2]
[362264117,1748128239382,-420.0,0.00019178,2]
[362264118,1748128239392,-420.0,0.00019178,2]
[362264120,1748128239401,-420.0,0.00019178,2]
[362264121,1748128239411,-420.0,0.00019178,2]
[362264122,1748128239420,-426.45269598,0.00019178,2]
[362264123,1748128239429,-420.0,0.00019178,2]
[362264124,1748128239438,-420.0,0.00019178,2]
[362264126,1748128239447,-420.0,0.00019178,2]
[362264127,1748128239457,-425.68726748,0.00019178,2]
[362264128,1748128239466,-389.42593539,0.00019178,2]
[362264129,1748128239475,-420.0,0.00019178,2]
[362264130,1748128239485,-420.0,0.00019178,2]
[362264131,1748128239494,-429.0650818,0.00019178,2]
[362264132,1748128239503,-420.0,0.00019178,2]
[362264133,1748128239513,-420.0,0.00019178,2]
[362264134,1748128239522,-420.0,0.00019178,2]
[362264135,1748128239531,-277.72313677,0.00019178,2]
[362264136,1748128239540,-420.0,0.00019178,2]
[362264137,1748128239550,-420.0,0.00019178,2]
[362264138,1748128239559,-420.0,0.00019178,2]
[362264139,1748128239568,-420.0,0.00019178,2]
[362264140,1748128239580,-420.0,0.00019178,2]
[362264141,1748128239589,-420.0,0.00019178,2]
[362264142,1748128239598,-420.0,0.00019178,2]
[362264143,1748128239607,-420.0,0.00019178,2]
[362264144,1748128239620,-420.0,0.00019178,2]
[362264146,1748128239629,-420.0,0.00019178,2]
[362264148,1748128239639,-420.0,0.00019178,2]
[362264149,1748128239649,-420.0,0.00019178,2]
[362264150,1748128239658,-420.0,0.00019178,2]
[362264151,1748128239668,-420.0,0.00019178,2]
[362264152,1748128239677,-420.0,0.00019178,2]
[362264153,1748128239686,-420.0,0.00019178,2]
[362264154,1748128239695,-420.0,0.00019178,2]
[362264156,1748128239706,-420.0,0.00019178,2]
[362264158,1748128239715,-420.0,0.00019178,2]
[362264159,1748128239725,-420.0,0.00019178,2]
[362264160,1748128239734,-3151.76,0.00019178,2]
[362264161,1748128239744,-568.41220046,0.00019178,2]
[362264162,1748128239754,-420.0,0.00019178,2]
[362264163,1748128239764,-420.0,0.00019178,2]
[362264164,1748128239776,-420.0,0.00019178,2]
[362264165,1748128239788,-420.0,0.00019178,2]
[362264166,1748128239797,-555.74,0.00019178,2]
[362264167,1748128239806,-420.0,0.00019178,2]
[362264168,1748128239816,-420.0,0.00019178,2]
[362264169,1748128239826,-420.0,0.00019178,2]
[362264170,1748128239835,-420.0,0.00019178,2]
[362264171,1748128239844,-420.0,0.00019178,2]
[362264172,1748128239854,-420.0,0.00019178,2]
[362264173,1748128239865,-420.0,0.00019178,2]
[362264174,1748128239875,-1907.22,0.00019178,2]
[362264175,1748128239884,-420.0,0.00019178,2]
[362264176,1748128239893,-420.0,0.00019178,2]
[362264177,1748128239903,-420.0,0.00019178,2]
[362264178,1748128239914,-420.0,0.00019178,2]
[362264179,1748128239923,-420.0,0.00019178,2]
[362264180,1748128239934,-420.0,0.00019178,2]
[362264181,1748128239943,-420.0,0.00019178,2]
[362264182,1748128239953,-420.0,0.00019178,2]
[362264183,1748128239963,-420.0,0.00019178,2]
[362264184,1748128239972,-420.0,0.00019178,2]
[362264185,1748128239981,-427.61108134,0.00019178,2]
[362264186,1748128239990,-1270.47,0.00019178,2]
[362264187,1748128240000,-420.0,0.00019178,2]
[362264188,1748128240010,-420.0,0.00019178,2]
[362264189,1748128240019,-500.84,0.00019178,2]
[362264190,1748128240029,-420.0,0.00019178,2]
[362264191,1748128240038,-420.0,0.00019178,2]
[362264192,1748128240047,-420.0,0.00019178,2]
[362264193,1748128240056,-420.0,0.00019178,2]
[362264194,1748128240065,-420.0,0.00019178,2]
[362264195,1748128240074,-420.0,0.00019178,2]
[362264196,1748128240083,-564.31,0.00019178,2]
[362264197,1748128240093,-150.0,0.00019178,2]
[362264198,1748128240102,-420.0,0.00019178,2]
[362264199,1748128240113,-420.0,0.00019178,2]
[362264200,1748128240122,-420.0,0.00019178,2]
[362264201,1748128240132,-420.0,0.00019178,2]
[362264202,1748128240141,-420.0,0.00019178,2]
[362264203,1748128240151,-420.0,0.00019178,2]
[362264204,1748128240160,-420.0,0.00019178,2]
[362264205,1748128240169,-420.0,0.00019178,2]
[362264206,1748128240178,-420.0,0.00019178,2]
[362264207,1748128240188,-420.0,0.00019178,2]
[362264208,1748128240197,-420.0,0.00019178,2]
[362264209,1748128240207,-420.0,0.00019178,2]
[362264210,1748128240216,-420.0,0.00019178,2]
[362264211,1748128240226,-420.0,0.00019178,2]
[362264212,1748128240235,-1497.71,0.00019178,2]
[362264213,1748128240244,-420.0,0.00019178,2]
[362264214,1748128240254,-822.31,0.00019178,2]
[362264215,1748128240263,-420.0,0.00019178,2]
[362264216,1748128240272,-420.0,0.00019178,2]
[362264217,1748128240281,-420.0,0.00019178,2]
[362264218,1748128240290,-2131.86,0.00019178,2]
[362264219,1748128240300,-420.0,0.00019178,2]
[362264220,1748128240309,-329.22864338,0.00019178,2]
[362264221,1748128240318,-420.0,0.00019178,2]
[362264222,1748128240327,-420.0,0.00019178,2]
[362264223,1748128240337,-420.0,0.00019178,2]
[362264224,1748128240346,-420.0,0.00019178,2]
[362264225,1748128240355,-552.47598728,0.00019178,2]
[362264226,1748128240366,-420.0,0.00019178,2]
[362264227,1748128240375,-420.0,0.00019178,2]
[362264228,1748128240384,-420.0,0.00019178,2]
[362264229,1748128240394,-420.0,0.00019178,2]
[362264230,1748128240403,-1551.8,0.00019178,2]
[362264231,1748128240413,-420.0,0.00019178,2]